bitfinex-derivatives/quotes_BTCF0:USTF0_20250905
["timestamp","ask_amount","ask_price","bid_price","bid_amount"]
[1757056868720,0.89472,112730.0,112710.0,0.3609]
[1757056868924,0.34571038,112720.0,112710.0,0.38305]
[1757056869220,0.03532,112710.0,112700.0,0.3609]
[1757056869425,0.03532,112700.0,112680.0,0.3608]
[1757056869633,0.02203,112690.0,112680.0,0.02215]
[1757056869932,2.94825,112720.0,112700.0,0.03597]
[1757056870230,0.3608,112740.0,112720.0,0.03597]
[1757056870427,2.97064,112750.0,112740.0,0.02215]
[1757056870624,1.57932038,112750.0,112740.0,0.02215]
[1757056870819,0.03532,112740.0,112730.0,0.0001]
[1757056871024,0.03532,112740.0,112730.0,0.02215]
[1757056871229,0.03532,112740.0,112730.0,0.39677]
[1757056871230,0.02203,112740.0,112730.0,0.39677]
[1757056871434,0.60900038,112740.0,112730.0,0.02215]
[1757056871625,0.96980038,112740.0,112730.0,0.02215]
[1757056871930,0.38283,112740.0,112730.0,0.03597]
[1757056872122,0.02303,112740.0,112730.0,0.39677]
[1757056872320,0.001,112740.0,112730.0,0.97045038]
[1757056872519,0.001,112740.0,112730.0,0.39677]
[1757056873331,0.02303,112740.0,112730.0,0.02215]
[1757056873634,0.61000038,112740.0,112720.0,0.37472]
[1757056873829,0.70651038,112730.0,112720.0,0.0001]
[1757056874029,0.70651038,112730.0,112710.0,0.37462]
[1757056874030,0.02203,112730.0,112710.0,0.37472]
[1757056874430,0.35900038,112730.0,112710.0,0.3609]
[1757056874633,0.34571038,112720.0,112710.0,0.3609]
[1757056874933,0.02203,112720.0,112710.0,0.39677]
[1757056875134,0.02203,112720.0,112710.0,0.39877]
[1757056875339,0.02203,112720.0,112710.0,0.002]
[1757056875340,0.71967038,112720.0,112710.0,0.002]
[1757056875532,0.71560701,112720.0,112710.0,0.002]
[1757056875739,0.28519,112720.0,112700.0,0.0001]
[1757056875932,0.37409,112730.0,112700.0,0.39562]
[1757056876133,0.89537,112740.0,112730.0,0.02173]
[1757056876336,0.37406,112760.0,112730.0,0.37379]
[1757056876540,1.55896038,112760.0,112740.0,0.01299]
[1757056876731,1.55896038,112760.0,112740.0,0.01309]
[1757056877140,1.22212,112760.0,112740.0,0.01309]
[1757056877335,1.18500038,112760.0,112740.0,0.01309]
[1757056877636,1.19816038,112760.0,112740.0,0.3609]
[1757056877941,0.86132,112760.0,112740.0,0.37389]
[1757056878142,1.22212,112760.0,112740.0,0.37389]
[1757056878333,0.86142,112760.0,112740.0,0.37399]
[1757056878735,0.86242,112760.0,112740.0,0.37399]
[1757056878934,0.0011,112760.0,112750.0,0.01299]
[1757056879138,0.001,112760.0,112750.0,0.01299]
[1757056879542,0.58784038,112760.0,112740.0,0.361]
[1757056879842,0.33794038,112760.0,112740.0,0.361]
[1757056880143,0.33994038,112760.0,112740.0,0.361]
[1757056880734,0.33894038,112760.0,112740.0,0.361]
[1757056880934,0.0211,112750.0,112740.0,0.38273]
[1757056881141,0.0211,112750.0,112740.0,0.38253]
[1757056881639,0.0011,112760.0,112740.0,0.39552]
[1757056881842,0.0011,112760.0,112750.0,0.03472]
[1757056882137,0.001,112760.0,112750.0,0.03472]
[1757056883235,1.55730038,112770.0,112750.0,0.03472]
[1757056883435,1.55730038,112770.0,112750.0,0.03492]
[1757056884030,1.23362,112770.0,112750.0,0.03492]
[1757056884236,1.55730038,112770.0,112750.0,0.03492]
[1757056884439,1.23362,112770.0,112750.0,0.03492]
[1757056884744,0.3609,112770.0,112750.0,0.39572]
[1757056884947,0.3609,112770.0,112760.0,0.39552]
[1757056884948,0.0001,112770.0,112760.0,0.39552]
[1757056885139,0.0001,112780.0,112770.0,0.03472]
[1757056885335,0.0212,112790.0,112780.0,0.03472]
[1757056885648,0.0001,112800.0,112790.0,0.03372]
[1757056885938,0.0001,112810.0,112800.0,0.03472]
[1757056886146,0.32378038,112820.0,112800.0,0.39552]
[1757056886346,0.0001,112820.0,112800.0,0.39572]
[1757056886734,0.0001,112820.0,112810.0,0.01299]
[1757056886943,0.0211,112820.0,112810.0,0.03472]
[1757056887241,0.0221,112820.0,112810.0,0.03472]
[1757056887644,0.86084,112820.0,112810.0,0.03472]
[1757056888343,0.0211,112810.0,112800.0,0.38273]
[1757056888648,1.44768038,112820.0,112810.0,0.03472]
[1757056888649,0.86394,112820.0,112810.0,0.03472]
[1757056888835,0.88594,112820.0,112810.0,0.02173]
[1757056889235,0.005,112820.0,112810.0,0.39552]
[1757056889639,0.004,112820.0,112810.0,0.39552]
[1757056890542,0.0261,112820.0,112810.0,0.38253]
[1757056890746,0.34578038,112820.0,112810.0,0.38253]
[1757056890943,0.0221,112820.0,112810.0,0.38253]
[1757056891450,0.0261,112820.0,112810.0,0.38253]
[1757056891837,0.005,112820.0,112810.0,0.64552]
[1757056892742,0.005,112820.0,112810.0,0.96920038]
[1757056892937,0.00014,112830.0,112820.0,0.01299]
[1757056893138,0.0001,112840.0,112820.0,0.4841442]
[1757056893343,0.0001,112840.0,112830.0,0.96920038]
[1757056893647,0.37040294,112890.0,112870.0,0.01299]
[1757056893841,0.39150294,112890.0,112880.0,0.02173]
[1757056894040,1.88195428,112890.0,112880.0,0.02173]
[1757056894246,0.86121428,112890.0,112880.0,0.39552]
[1757056894440,5.428e-05,112890.0,112880.0,0.37379]
[1757056894847,1.50005428,112890.0,112880.0,0.62379]
[1757056895039,1.50905428,112890.0,112880.0,0.62479]
[1757056895645,1.50905428,112890.0,112880.0,0.001]
[1757056896146,2.09389466,112890.0,112870.0,0.3608]
[1757056896349,0.86132,112880.0,112860.0,0.37379]
[1757056896745,0.00705428,112890.0,112880.0,0.01299]
[1757056897052,0.00705428,112890.0,112880.0,0.37379]
[1757056897244,0.00705428,112890.0,112880.0,0.62379]
[1757056897853,5.428e-05,112890.0,112880.0,0.62379]
[1757056898147,0.00305428,112890.0,112880.0,0.64552]
[1757056898844,0.00305428,112890.0,112880.0,0.39552]
[1757056899551,0.00305428,112890.0,112880.0,0.64552]
[1757056901051,0.00305428,112890.0,112880.0,0.39552]
[1757056901353,4e-05,112900.0,112890.0,0.01299]
[1757056901555,0.02335812,112930.0,112920.0,0.03472]
[1757056901754,0.02335812,112930.0,112920.0,0.39552]
[1757056902354,0.02335812,112930.0,112920.0,0.64552]
[1757056902557,0.02335812,112930.0,112920.0,0.39552]
[1757056902859,0.02335812,112930.0,112920.0,0.64552]
[1757056903057,0.01635812,112930.0,112920.0,0.91274355]
[1757056903257,0.0001,112970.0,112960.0,0.01297]
[1757056903459,0.03426,112970.0,112960.0,0.02173]
[1757056903770,0.03426,112970.0,112950.0,0.0001]
[1757056903970,0.01316,112960.0,112950.0,0.0001]
[1757056904174,0.03426,112960.0,112950.0,0.02173]
[1757056904364,0.64506,112960.0,112940.0,0.0001]
[1757056904566,0.39506,112950.0,112940.0,0.02183]
[1757056904767,0.62396,112960.0,112940.0,0.16127627]
[1757056904768,0.37396,112960.0,112940.0,0.16127627]
[1757056904968,0.37396,112960.0,112940.0,0.39019]
[1757056905175,0.62396,112960.0,112940.0,0.02183]
[1757056905377,0.39495,112950.0,112940.0,0.0001]
[1757056905565,0.03415,112940.0,112930.0,0.02256]
[1757056905770,0.90579,112940.0,112930.0,0.02256]
[1757056905969,0.3608,112950.0,112930.0,0.03012]
[1757056906170,0.01287,112950.0,112920.0,0.39476728]
[1757056906381,0.03415,112940.0,112930.0,0.02256]
[1757056907263,0.01287,112930.0,112920.0,0.38179728]
[1757056907573,0.03415,112910.0,112900.0,0.0005]
[1757056907877,0.03415,112910.0,112900.0,0.02306]
[1757056908077,0.90583,112910.0,112900.0,0.02306]
[1757056908275,1.78385355,112910.0,112900.0,0.0005]
[1757056908472,1.51663,112910.0,112900.0,0.0005]
[1757056908668,0.91217355,112910.0,112900.0,0.0005]
[1757056908976,1.78393355,112910.0,112900.0,0.0005]
[1757056909286,1.26747,112910.0,112900.0,0.02306]
[1757056909778,0.03415,112910.0,112900.0,0.38386]
[1757056909976,1.72515,112920.0,112900.0,0.39142]
[1757056910178,2.95871,112920.0,112900.0,0.38386]
[1757056910376,0.03415,112910.0,112900.0,0.38386]
[1757056910769,0.03415,112910.0,112900.0,0.02306]
[1757056910979,0.03615,112910.0,112900.0,0.02306]
[1757056911475,0.03615,112910.0,112900.0,0.0005]
[1757056911676,0.64495,112910.0,112900.0,0.0005]
[1757056912270,0.01287,112880.0,112860.0,0.3608]
[1757056912470,0.03415,112880.0,112870.0,0.02256]
[1757056913078,0.03415,112880.0,112860.0,0.3609]
[1757056913079,0.03415,112870.0,112860.0,0.3609]
[1757056913282,0.90643,112870.0,112860.0,0.38336]
[1757056913485,0.90643,112870.0,112860.0,0.002]
[1757056913486,1.26723,112870.0,112860.0,0.002]
[1757056913777,2.25837167,112870.0,112850.0,0.0001]
[1757056913979,0.88491,112860.0,112850.0,0.0001]
[1757056914183,0.01287,112850.0,112840.0,0.0001]
[1757056914486,0.88499,112850.0,112840.0,0.42542833]
[1757056915182,0.88499,112850.0,112840.0,0.3608]
[1757056915183,1.13399,112850.0,112840.0,0.3608]
[1757056915378,0.01287,112840.0,112830.0,0.3609]
[1757056915678,0.88475,112840.0,112830.0,0.42542833]
[1757056916078,1.13447,112840.0,112830.0,0.42542833]
[1757056916277,0.26287,112840.0,112830.0,0.42542833]
[1757056916486,0.88451,112840.0,112830.0,0.42542833]
[1757056916677,1.13551,112840.0,112830.0,0.42542833]
[1757056916982,0.01287,112830.0,112820.0,0.3609]
[1757056917185,0.01287,112830.0,112820.0,0.3608]
[1757056917383,0.88471,112830.0,112820.0,0.3608]
[1757056917584,0.88471,112830.0,112810.0,0.3609]
[1757056917884,0.88471,112830.0,112810.0,0.42552833]
[1757056917885,0.01287,112820.0,112810.0,0.42552833]
[1757056918087,0.01287,112820.0,112810.0,0.42542833]
[1757056918485,0.69759,112820.0,112810.0,0.42542833]
[1757056918889,0.01287,112810.0,112800.0,0.3609]
[1757056919084,0.28009355,112810.0,112800.0,0.42542833]
[1757056919589,1.15161355,112810.0,112800.0,0.42542833]
[1757056920088,1.14961355,112810.0,112800.0,0.42642833]
[1757056920285,1.14961355,112810.0,112800.0,0.06562833]
[1757056920485,0.01287,112800.0,112790.0,0.0001]
[1757056920784,0.88003,112800.0,112790.0,0.06462833]
[1757056920987,0.01287,112790.0,112780.0,0.0001]
[1757056921189,1.15109355,112790.0,112770.0,0.3609]
[1757056921386,1.15119355,112790.0,112770.0,0.3609]
[1757056921582,0.88397,112790.0,112770.0,0.3609]
[1757056921783,0.01297,112790.0,112770.0,0.3609]
[1757056921980,0.0001,112790.0,112780.0,0.42542833]
[1757056922182,0.83427,112790.0,112780.0,0.06462833]
[1757056922582,0.83627,112790.0,112780.0,0.06462833]
[1757056922786,0.01487,112790.0,112780.0,0.42542833]
[1757056923291,0.28715,112790.0,112780.0,0.06462833]
[1757056923487,1.16119,112790.0,112780.0,0.06462833]
[1757056923688,0.29015,112790.0,112780.0,0.42542833]
[1757056923885,0.02728,112790.0,112780.0,0.42542833]
[1757056924086,0.89696,112790.0,112780.0,0.08718833]
[1757056924285,0.89688,112790.0,112780.0,0.44798833]
[1757056924679,0.89792,112790.0,112780.0,0.42542833]
[1757056924987,0.89792,112790.0,112780.0,0.06462833]
[1757056924988,0.90979,112790.0,112780.0,0.06462833]
[1757056925485,0.03915,112790.0,112780.0,0.42542833]
[1757056925692,0.90907,112790.0,112780.0,0.42542833]
[1757056925890,0.90907,112790.0,112780.0,0.44798833]
[1757056926086,1.52087,112790.0,112780.0,0.06462833]
[1757056926482,1.16007,112790.0,112780.0,0.06462833]
[1757056926683,1.52187,112790.0,112780.0,0.06462833]
[1757056926886,0.01287,112780.0,112770.0,0.0001]
[1757056927090,0.01287,112780.0,112760.0,0.0001]
[1757056927091,0.03415,112770.0,112760.0,0.0001]
[1757056927291,0.90351,112770.0,112760.0,0.06462833]
[1757056927695,0.90351,112770.0,112720.0,0.01267]
[1757056927696,1.5,112760.0,112720.0,0.01267]
[1757056927889,2.12802355,112760.0,112730.0,0.37347]
[1757056928195,0.86916,112750.0,112740.0,0.37347]
[1757056928384,0.86924,112750.0,112740.0,0.37347]
[1757056928589,1.5,112760.0,112750.0,0.01267]
[1757056928786,2.3692,112760.0,112750.0,0.39609833]
[1757056928993,2.3692,112760.0,112750.0,0.03529833]
[1757056929290,2.3692,112760.0,112750.0,0.39609833]
[1757056929691,2.3722,112760.0,112750.0,0.39609833]
[1757056930087,2.3722,112760.0,112750.0,0.02262833]
[1757056930289,2.3722,112760.0,112750.0,0.38342833]
[1757056930693,2.39185,112760.0,112750.0,0.38342833]
[1757056930888,2.64185,112760.0,112740.0,0.3608]
[1757056931093,0.28687355,112750.0,112740.0,0.38342833]
[1757056931890,0.01965,112750.0,112740.0,0.41865833]
[1757056932196,0.01965,112750.0,112740.0,0.41965833]
[1757056932396,0.89205,112750.0,112740.0,0.66965833]
[1757056932591,0.89205,112750.0,112740.0,0.41965833]
[1757056933091,1.502,112760.0,112750.0,0.01267]
[1757056933291,1.502,112760.0,112750.0,0.39603]
[1757056933292,0.8742,112760.0,112750.0,0.39603]
[1757056933489,0.70061259,112800.0,112760.0,0.01267]
[1757056933687,2.37248,112790.0,112780.0,0.39603]
[1757056933893,2.34198355,112820.0,112800.0,0.02062833]
[1757056934089,0.87232,112810.0,112800.0,0.39409833]
[1757056934400,2.37232,112810.0,112800.0,0.39409833]
[1757056935595,2.37532,112810.0,112800.0,0.39409833]
[1757056935897,2.90482355,112810.0,112800.0,0.3608]
[1757056936197,2.89254355,112810.0,112800.0,0.3608]
[1757056936497,3.25334355,112810.0,112780.0,0.37347]
[1757056936692,0.26722355,112790.0,112770.0,0.3608]
[1757056936893,0.87228,112780.0,112770.0,0.37397]
[1757056937195,1.503,112810.0,112800.0,0.02062833]
[1757056937390,2.3826,112810.0,112800.0,0.39459833]
[1757056937791,2.3806,112810.0,112800.0,0.39459833]
[1757056937990,2.3786,112810.0,112800.0,0.39459833]
[1757056938488,2.3806,112810.0,112800.0,0.39459833]
[1757056938690,2.3796,112810.0,112800.0,0.39459833]
[1757056938996,2.3816,112810.0,112800.0,0.39459833]
[1757056939590,2.3816,112810.0,112800.0,0.38142833]
[1757056940393,2.3816,112810.0,112800.0,0.39459833]
[1757056940699,2.40125,112810.0,112800.0,0.41732833]
[1757056942493,1.504,112810.0,112800.0,0.41732833]
[1757056943005,0.004,112810.0,112800.0,0.66732833]
[1757056943795,0.004,112810.0,112800.0,0.66632833]
[1757056943994,0.002,112810.0,112800.0,0.66632833]
[1757056944191,0.001,112810.0,112800.0,0.66632833]
[1757056944797,0.001,112810.0,112800.0,0.66932833]
[1757056945003,1.5,112820.0,112810.0,0.0359]
[1757056945198,1.5,112820.0,112810.0,0.3967]
[1757056945500,0.87648,112830.0,112820.0,0.01317]
[1757056945806,0.87648,112830.0,112820.0,0.3967]
[1757056945998,2.39613,112830.0,112820.0,0.41632833]
[1757056947000,2.39613,112830.0,112820.0,0.03279833]
[1757056947207,2.91335355,112830.0,112820.0,0.38042833]
[1757056947406,2.91335355,112830.0,112820.0,0.01962833]
[1757056947602,2.91335355,112830.0,112810.0,0.37407]
[1757056947811,2.91335355,112830.0,112810.0,0.39369833]
[1757056947812,2.66345355,112830.0,112810.0,0.39369833]
[1757056947994,2.66445355,112830.0,112810.0,0.39369833]
[1757056948307,2.66445355,112830.0,112820.0,0.01962833]
[1757056948504,2.66435355,112830.0,112820.0,0.01962833]
[1757056949210,3.02515355,112830.0,112820.0,0.01962833]
[1757056949398,2.66435355,112830.0,112820.0,0.01962833]
[1757056949605,2.91435355,112830.0,112810.0,0.37407]
[1757056949800,3.02525355,112830.0,112810.0,0.38052833]
[1757056950010,3.27525355,112830.0,112810.0,0.3609]
[1757056950213,2.39877355,112830.0,112810.0,0.3609]
[1757056950505,0.89349,112820.0,112810.0,0.3609]
[1757056950711,0.89349,112820.0,112810.0,0.38042833]
[1757056950909,1.16071355,112820.0,112810.0,0.38042833]
[1757056951301,1.16071355,112820.0,112810.0,0.01962833]
[1757056951608,1.41071355,112820.0,112800.0,0.5609]
[1757056951811,1.16081355,112820.0,112800.0,0.58052833]
[1757056952110,1.18016233,112820.0,112800.0,0.58052833]
[1757056952304,1.18116233,112820.0,112800.0,0.58052833]
[1757056952501,1.43116233,112820.0,112800.0,0.5609]
[1757056952704,1.79196233,112820.0,112800.0,0.2001]
[1757056953008,0.28687355,112810.0,112800.0,0.2001]
[1757056953207,2.63066427,112810.0,112800.0,0.18772]
[1757056953600,3.50502427,112810.0,112800.0,0.18772]
[1757056953812,3.50486427,112810.0,112800.0,0.18772]
[1757056954212,2.63466427,112810.0,112800.0,0.18732]
[1757056954508,2.38466427,112810.0,112800.0,0.18732]
[1757056954712,3.26050427,112810.0,112800.0,0.18732]
[1757056954912,2.99328072,112810.0,112800.0,0.18732]
[1757056955103,2.99264072,112810.0,112800.0,0.18732]
[1757056955812,3.25986427,112810.0,112800.0,0.18732]
[1757056956004,2.89906427,112810.0,112800.0,0.18732]
[1757056956311,3.25586427,112810.0,112800.0,0.18732]
[1757056956511,2.38566427,112810.0,112800.0,0.18732]
[1757056956701,3.26150427,112810.0,112800.0,0.18732]
[1757056956903,3.51150427,112810.0,112800.0,0.18732]
[1757056957607,3.24528072,112810.0,112790.0,0.0001]
[1757056957813,0.68445588,112800.0,112790.0,0.01972833]
[1757056958008,0.7038066,112800.0,112790.0,0.01962833]
[1757056958206,1.27746248,112800.0,112780.0,0.0001]
[1757056958415,1.56321588,112790.0,112780.0,0.01972833]
[1757056958611,1.5825666,112790.0,112780.0,0.01962833]
[1757056959013,1.2213266,112790.0,112780.0,0.01962833]
[1757056959506,1.5821266,112790.0,112780.0,0.01962833]
[1757056959711,1.5841266,112790.0,112780.0,0.01962833]
[1757056960421,1.2255266,112790.0,112780.0,0.01962833]
[1757056960611,1.2275266,112790.0,112780.0,0.01962833]
[1757056961117,1.2271266,112790.0,112780.0,0.01962833]
[1757056962113,0.3470066,112790.0,112780.0,0.03279833]
[1757056962320,0.02335072,112790.0,112780.0,0.66632833]
[1757056962612,0.88348,112790.0,112780.0,0.66632833]
[1757056963217,1.20713588,112790.0,112780.0,0.66632833]
[1757056963412,0.88348,112790.0,112780.0,0.64359833]
[1757056963719,1.20473588,112790.0,112780.0,0.66632833]
[1757056964317,1.20673588,112790.0,112780.0,0.66632833]
[1757056964813,0.88208,112790.0,112780.0,0.66632833]
[1757056965417,1.20573588,112790.0,112780.0,0.66632833]
[1757056966210,1.20373588,112790.0,112780.0,0.66632833]
[1757056966911,1.20573588,112790.0,112780.0,0.66632833]
[1757056967111,1.20573588,112790.0,112780.0,0.39359833]
[1757056967428,1.20573588,112790.0,112780.0,0.41544833]
[1757056967612,0.004,112790.0,112780.0,0.41544833]
[1757056967920,0.88308,112790.0,112780.0,0.66544833]
[1757056968527,0.88208,112790.0,112780.0,0.66544833]
[1757056969015,0.88008,112790.0,112780.0,0.66524833]
[1757056969811,1.20373588,112790.0,112780.0,0.64411833]
[1757056970517,0.88008,112790.0,112780.0,0.28331833]
[1757056970722,0.88208,112790.0,112780.0,0.66524833]
[1757056971019,0.88212,112790.0,112780.0,0.66524833]
[1757056971618,1.20577588,112790.0,112780.0,0.66524833]
[1757056972021,0.88212,112790.0,112780.0,0.66524833]
[1757056972222,0.003,112790.0,112780.0,0.66524833]
[1757056972420,0.8824,112790.0,112780.0,0.66524833]
[1757056973128,0.8804,112790.0,112780.0,0.66524833]
[1757056973822,0.8804,112790.0,112780.0,0.66624833]
[1757056974121,0.8814,112790.0,112780.0,0.66624833]
[1757056974822,0.8804,112790.0,112780.0,0.66624833]
[1757056975526,0.8804,112790.0,112780.0,0.66524833]
[1757056975527,0.8794,112790.0,112780.0,0.66524833]
[1757056975826,0.8804,112790.0,112780.0,0.66524833]
[1757056976325,1.20405588,112790.0,112780.0,0.41524833]
[1757056976520,1.20405588,112790.0,112780.0,0.39411833]
[1757056976723,1.20405588,112790.0,112780.0,0.39511833]
[1757056977330,1.20305588,112790.0,112780.0,0.39411833]
[1757056977529,1.20405588,112790.0,112780.0,0.41524833]
[1757056977724,0.8804,112790.0,112780.0,0.41524833]
[1757056978328,1.20305588,112790.0,112780.0,0.39411833]
[1757056978624,1.20505588,112790.0,112780.0,0.39411833]
[1757056979413,1.20505588,112790.0,112780.0,0.41524833]
[1757056979617,1.20705588,112790.0,112780.0,0.41524833]
[1757056981119,0.8834,112790.0,112780.0,0.41524833]
[1757056981320,1.20705588,112790.0,112780.0,0.39582]
[1757056982922,0.8834,112790.0,112780.0,0.39411833]
[1757056983125,1.45705588,112790.0,112780.0,0.39411833]
[1757056983432,1.45705588,112790.0,112770.0,0.37407]
[1757056983626,0.32365588,112780.0,112770.0,0.39349833]
[1757056983931,0.32365588,112780.0,112770.0,0.39339833]
[1757056984126,0.34304887,112780.0,112770.0,0.39339833]
[1757056984336,0.59304887,112780.0,112770.0,0.01942833]
[1757056984518,0.95384887,112780.0,112760.0,0.37407]
[1757056984724,1.19805588,112770.0,112760.0,0.39349833]
[1757056984922,1.19805588,112770.0,112760.0,0.39339833]
[1757056985123,0.32375588,112780.0,112770.0,0.01389]
[1757056985320,0.4129028,112780.0,112770.0,0.03502]
[1757056985627,1.2877828,112780.0,112770.0,0.05444833]
[1757056985930,1.2875828,112780.0,112770.0,0.05444833]
[1757056986230,0.4129028,112780.0,112770.0,0.05444833]
[1757056986437,1.2871828,112780.0,112770.0,0.05444833]
[1757056986632,1.2871828,112780.0,112770.0,0.41524833]
[1757056986826,1.26779233,112780.0,112770.0,0.41524833]
[1757056987025,1.26879233,112780.0,112770.0,0.41524833]
[1757056987223,0.07085645,112780.0,112770.0,0.41524833]
[1757056987423,0.07085645,112780.0,112770.0,0.66524833]
[1757056987424,0.001,112780.0,112770.0,0.66524833]
[1757056987623,0.87464,112780.0,112770.0,0.66524833]
[1757056988730,0.87364,112780.0,112770.0,0.66524833]
[1757056988929,0.87464,112780.0,112770.0,0.66524833]
[1757056989128,1.19829588,112780.0,112770.0,0.41624833]
[1757056989329,1.19829588,112780.0,112770.0,0.39511833]
[1757056989534,1.26991133,112780.0,112770.0,0.03431833]
[1757056989934,1.26991133,112780.0,112770.0,0.03331833]
[1757056990121,1.26991133,112780.0,112770.0,0.03431833]
[1757056990326,1.26891133,112780.0,112770.0,0.03431833]
[1757056990526,1.28932902,112780.0,112770.0,0.02042833]
[1757056990924,1.90012951,112780.0,112770.0,0.001]
[1757056991322,1.89912951,112780.0,112770.0,0.001]
[1757056991527,1.90012951,112780.0,112770.0,0.001]
[1757056992240,1.90012951,112780.0,112760.0,0.0001]
[1757056992437,0.68445588,112770.0,112760.0,0.0001]
[1757056992636,1.58231406,112770.0,112750.0,0.01327]
[1757056992828,0.68445588,112760.0,112750.0,0.03269833]
[1757056993028,0.68445588,112760.0,112750.0,0.01942833]
[1757056993429,0.32365588,112760.0,112750.0,0.01942833]
[1757056993727,0.95385912,112760.0,112750.0,0.01942833]
[1757056994225,0.95385912,112760.0,112740.0,0.37479]
[1757056994425,0.01950324,112760.0,112750.0,0.003]
[1757056994624,0.83672,112760.0,112750.0,0.41824833]
[1757056994831,3.16168,112760.0,112740.0,0.0001]
[1757056995031,0.3608,112750.0,112740.0,0.01952833]
[1757056995236,0.3608,112750.0,112740.0,0.05556833]
[1757056995538,1.56329588,112750.0,112740.0,0.05556833]
[1757056995837,1.56329588,112750.0,112740.0,0.03304833]
[1757056996423,0.68445588,112750.0,112740.0,0.03304833]
[1757056996629,1.56257588,112750.0,112740.0,0.05556833]
[1757056997030,1.56257588,112750.0,112740.0,0.03304833]
[1757056997627,0.0001,112760.0,112750.0,0.01362]
[1757056997830,0.41308712,112780.0,112770.0,0.03614]
[1757056998027,1.1024,112780.0,112770.0,0.03614]
[1757056998231,1.42605588,112780.0,112770.0,0.03614]
[1757056999035,1.10772,112780.0,112770.0,0.03694]
[1757056999238,0.005,112780.0,112770.0,0.64774]
[1757056999434,0.88176,112780.0,112770.0,0.64774]
[1757056999634,1.23788,112790.0,112780.0,0.01362]
[1757056999840,1.23788,112790.0,112780.0,0.03614]
[1757057000845,2.0754,112810.0,112800.0,0.03614]
[1757057001043,2.95148,112810.0,112800.0,0.03614]
[1757057002132,3.27513588,112810.0,112800.0,0.03614]
[1757057003044,2.95648,112810.0,112800.0,0.03614]
[1757057003346,0.36612,112810.0,112800.0,0.03614]
[1757057003541,0.002,112810.0,112800.0,0.28614]
[1757057003740,0.007,112810.0,112800.0,0.97159588]
[1757057004044,0.008,112810.0,112800.0,0.64794]
[1757057004947,0.005,112810.0,112800.0,0.64794]
[1757057005251,0.005,112810.0,112800.0,0.97159588]
[1757057005647,0.002,112810.0,112800.0,0.97059588]
[1757057006141,0.002,112810.0,112800.0,0.72059588]
[1757057006348,0.00032,112820.0,112810.0,0.03614]
[1757057006542,0.00032,112820.0,112810.0,0.39694]
[1757057006738,0.87404,112830.0,112810.0,0.39694]
[1757057006739,2.14753607,112850.0,112840.0,0.01362]
[1757057006938,1.30577607,112850.0,112840.0,0.03614]
[1757057009446,1.30577607,112850.0,112840.0,0.001]
[1757057009447,1.88443195,112850.0,112840.0,0.001]
[1757057009948,1.88743195,112850.0,112840.0,0.001]
[1757057010544,1.88443195,112850.0,112820.0,0.01362]
[1757057010751,0.00032,112830.0,112820.0,0.03614]
[1757057011044,0.87064,112830.0,112820.0,0.03614]
[1757057011347,1.23144,112830.0,112820.0,0.01362]
[1757057011544,0.87064,112830.0,112820.0,0.01362]
[1757057011944,0.87064,112830.0,112820.0,0.03614]
[1757057012852,0.87264,112830.0,112820.0,0.03614]
[1757057013939,0.87364,112830.0,112820.0,0.03614]
[1757057015151,0.87364,112830.0,112820.0,0.01362]
[1757057015853,1.55809588,112830.0,112820.0,0.01362]
[1757057016037,1.55809588,112830.0,112810.0,0.01362]
[1757057016239,1.55809588,112830.0,112820.0,0.01362]
[1757057016440,1.55809588,112830.0,112820.0,0.03614]
[1757057016441,0.87364,112830.0,112820.0,0.03614]
[1757057016751,0.87052,112830.0,112820.0,0.03614]
[1757057016942,1.23132,112830.0,112820.0,0.01362]
[1757057017148,0.86952,112830.0,112820.0,0.01362]
[1757057017348,1.19317588,112830.0,112820.0,0.01362]
[1757057017649,1.55397588,112830.0,112820.0,0.01362]
[1757057017849,0.86952,112830.0,112820.0,0.03614]
[1757057018350,0.87052,112830.0,112820.0,0.03614]
[1757057019253,0.00332,112830.0,112820.0,0.39694]
[1757057019456,0.003,112830.0,112820.0,0.64694]
[1757057020561,0.003,112830.0,112820.0,0.91449828]
[1757057021258,0.002,112830.0,112820.0,0.91449828]
[1757057022068,0.0001,112840.0,112830.0,0.03614]
[1757057022368,0.8649,112850.0,112840.0,0.03614]
[1757057022567,0.8648,112850.0,112840.0,0.39694]
[1757057023167,0.0001,112860.0,112850.0,0.03614]
[1757057023168,0.93751317,112860.0,112850.0,0.03614]
[1757057023363,0.93741317,112860.0,112850.0,0.03614]
[1757057023558,0.86736,112860.0,112850.0,0.03614]
[1757057024468,0.86736,112860.0,112850.0,0.39694]
[1757057024863,0.86736,112860.0,112850.0,0.03614]
[1757057025263,0.86836,112860.0,112850.0,0.03614]
[1757057026566,1.11836,112860.0,112850.0,0.03614]
[1757057026767,1.11836,112860.0,112850.0,0.01362]
[1757057027066,1.19089571,112860.0,112850.0,0.01362]
[1757057027662,1.55169571,112860.0,112850.0,0.01362]
[1757057028464,1.55169571,112860.0,112840.0,0.01372]
[1757057028665,0.63187828,112850.0,112840.0,0.01372]
[1757057028972,0.63187828,112850.0,112840.0,0.01332]
[1757057029470,0.88187828,112850.0,112830.0,0.01372]
[1757057029667,0.86488,112840.0,112830.0,0.01372]
[1757057029962,0.86444,112840.0,112830.0,0.03522]
[1757057030171,0.00352,112840.0,112830.0,0.03522]
[1757057030366,0.86428,112840.0,112830.0,0.03522]
[1757057030764,0.86428,112840.0,112830.0,0.03722]
[1757057032274,0.86428,112840.0,112830.0,0.03522]
[1757057032471,0.86428,112840.0,112830.0,0.03722]
[1757057032970,0.86428,112840.0,112830.0,0.03622]
[1757057033171,1.22508,112840.0,112830.0,0.03622]
[1757057034162,0.36432,112840.0,112830.0,0.03622]
[1757057034364,0.86256,112840.0,112830.0,0.03622]
[1757057034563,0.86356,112840.0,112830.0,0.03622]
[1757057034971,0.86284,112840.0,112830.0,0.03622]
[1757057035363,0.86284,112840.0,112830.0,0.03522]
[1757057035560,0.86384,112840.0,112830.0,0.03522]
[1757057036375,0.002,112840.0,112830.0,0.64602]